bitfinex/quotes_SOLUSD_20251120
["timestamp","ask_amount","ask_price","bid_price","bid_amount"]
[1763671810636,0.7,134.52,134.49,7.70006069]
[1763671810930,0.7,134.55,134.48,7.70006069]
[1763671811129,0.7,134.55,134.52,7.70006069]
[1763671811640,0.7,134.55,134.48,18.12096]
[1763671811959,0.7,134.55,134.53,7.70006069]
[1763671812181,0.7,134.55,134.54,7.70006069]
[1763671812966,0.7,134.55,134.49,1.8]
[1763671813133,0.7,134.55,134.52,7.70006069]
[1763671813647,0.7,134.55,134.53,7.70006069]
[1763671813940,0.7,134.55,134.54,7.70006069]
[1763671814650,0.7,134.55,134.49,1.8]
[1763671814855,0.7,134.55,134.51,7.70006069]
[1763671815033,0.7,134.55,134.52,7.70006069]
[1763671815235,0.7,134.55,134.53,7.70006069]
[1763671815930,0.7,134.55,134.52,7.70006069]
[1763671816137,0.7,134.55,134.51,7.70006069]
[1763671816337,0.7,134.55,134.52,7.70006069]
[1763671816649,0.7,134.55,134.51,7.70006069]
[1763671816961,12.04274358,134.54,134.48,18.12096]
[1763671817130,29.70978769,134.54,134.49,12.04274358]
[1763671817330,0.7,134.53,134.5,12.04274358]
[1763671817572,0.7,134.53,134.46,18.12096]
[1763671817771,0.7,134.53,134.49,12.04274358]
[1763671818448,0.7,134.53,134.52,12.04274358]
[1763671819860,0.7,134.53,134.49,19.92096]
[1763671819861,0.7,134.53,134.51,12.04274358]
[1763671820150,0.7,134.53,134.52,12.04274358]
[1763671820354,0.7,134.53,134.51,12.04274358]
[1763671820550,0.7,134.53,134.52,12.04274358]
[1763671820766,0.7,134.53,134.5,12.04274358]
[1763671820971,2.5,134.53,134.5,12.04274358]
[1763671821157,0.67,134.52,134.5,12.04274358]
[1763671821978,0.67,134.55,134.51,12.04274358]
[1763671822184,0.67,134.55,134.54,12.04274358]
[1763671823252,0.67,134.6,134.54,30.16370358]
[1763671823582,2.47,134.59,134.54,18.12096]
[1763671823810,9.78882769,134.57,134.46,12.25274358]
[1763671823957,9.78882769,134.57,134.52,12.04274358]
[1763671824159,0.67,134.56,134.52,12.04274358]
[1763671824356,1.8,134.55,134.48,1.8]
[1763671824572,1.8,134.55,134.51,12.04274358]
[1763671824761,0.67,134.54,134.51,12.04274358]
[1763671824964,18.79096,134.54,134.48,12.04274358]
[1763671825174,100.0,134.55,134.5,12.04274358]
[1763671825374,0.67,134.54,134.48,1.8]
[1763671825564,0.67,134.54,134.51,12.04274358]
[1763671825767,0.67,134.54,134.49,12.04274358]
[1763671825990,0.67,134.54,134.5,12.04274358]
[1763671827377,9.78882769,134.53,134.48,12.04274358]
[1763671827784,2.47,134.52,134.48,12.04274358]
[1763671828005,2.47,134.52,134.42,11.58882769]
[1763671828194,9.78882769,134.49,134.43,12.04274358]
[1763671828385,1.8,134.48,134.43,12.04274358]
[1763671828595,1.8,134.48,134.41,12.04274358]
[1763671828596,9.78882769,134.47,134.41,12.04274358]
[1763671828888,10.45882769,134.47,134.43,12.04274358]
[1763671829194,2.47,134.46,134.43,12.04274358]
[1763671829404,2.47,134.46,134.38,0.21]
[1763671829405,0.67,134.46,134.44,12.04274358]
[1763671829700,2.47,134.45,134.44,12.04274358]
[1763671829882,0.67,134.45,134.44,12.04274358]
[1763671830573,0.67,134.45,134.39,0.21]
[1763671830882,0.67,134.45,134.42,18.12096]
[1763671831087,0.67,134.45,134.41,12.04274358]
[1763671831277,9.78882769,134.44,134.39,12.04274358]
[1763671831475,59.78882769,134.42,134.36,12.04274358]
[1763671831874,0.72,134.41,134.35,12.04274358]
[1763671832183,1.8,134.4,134.34,12.04274358]
[1763671832509,0.72,134.39,134.35,12.04274358]
[1763671833288,0.72,134.39,134.37,12.04274358]
[1763671833501,1.8,134.38,134.37,12.04274358]
[1763671833827,1.8,134.38,134.34,12.04274358]
[1763671833994,0.72,134.37,134.35,12.04274358]
[1763671834378,1.8,134.37,134.36,12.04274358]
[1763671834580,1.8,134.38,134.36,12.04274358]
[1763671834775,0.72,134.39,134.34,18.12096]
[1763671835012,0.72,134.38,134.37,12.04274358]
[1763671835382,0.72,134.44,134.4,18.12096]
[1763671835699,0.72,134.44,134.43,12.04274358]
[1763671835910,0.72,134.44,134.42,12.04274358]
[1763671836113,1.8,134.43,134.41,12.04274358]
[1763671836292,1.8,134.43,134.4,12.04274358]
[1763671836491,0.72,134.42,134.4,12.04274358]
[1763671836878,0.72,134.42,134.38,18.12096]
[1763671837084,0.72,134.42,134.37,30.16370358]
[1763671837391,0.72,134.42,134.35,12.04274358]
[1763671837708,12.76274358,134.42,134.35,12.04274358]
[1763671837913,12.76274358,134.42,134.34,12.04274358]
[1763671838113,12.76274358,134.41,134.34,30.16370358]
[1763671838313,21.83157127,134.39,134.32,12.04274358]
[1763671838482,9.78882769,134.39,134.33,12.04274358]
[1763671838685,9.78882769,134.39,134.28,12.04274358]
[1763671838686,2.52,134.38,134.32,12.04274358]
[1763671839113,0.72,134.37,134.32,12.04274358]
[1763671839423,0.72,134.37,134.31,12.04274358]
[1763671839617,9.78882769,134.36,134.31,12.04274358]
[1763671839796,1.8,134.35,134.31,12.04274358]
[1763671839995,2.52,134.35,134.31,12.04274358]
[1763671840212,0.72,134.34,134.31,12.04274358]
[1763671840617,1.8,134.33,134.28,18.12096]
[1763671840848,1.8,134.33,134.32,12.04274358]
[1763671841021,2.52,134.33,134.32,12.04274358]
[1763671841209,2.52,134.33,134.28,18.12096]
[1763671841534,0.72,134.32,134.31,12.04274358]
[1763671841914,1.8,134.33,134.31,12.04274358]
[1763671842126,1.8,134.33,134.32,12.04274358]
[1763671842704,9.78882769,134.37,134.32,12.04274358]
[1763671843041,2.52,134.34,134.33,12.04274358]
[1763671843536,2.52,134.34,134.32,12.04274358]
[1763671843878,1.8,134.34,134.33,12.04274358]
[1763671844041,1.8,134.35,134.33,12.04274358]
[1763671844348,1.8,134.35,134.34,12.04274358]
[1763671844503,2.52,134.35,134.34,12.04274358]
[1763671844841,2.52,134.35,134.31,18.12096]
[1763671846841,0.72,134.34,134.33,12.04274358]
[1763671847020,0.72,134.34,134.32,12.04274358]
[1763671847420,0.72,134.34,134.28,11.79882769]
[1763671847622,0.72,134.34,134.32,12.04274358]
[1763671848443,0.72,134.34,134.33,12.04274358]
[1763671848619,0.72,134.34,134.32,12.04274358]
[1763671850743,0.72,134.34,134.25,0.21]
[1763671850924,0.72,134.34,134.31,12.04274358]
[1763671851128,1.8,134.33,134.31,12.04274358]
[1763671851541,0.69,134.32,134.31,12.04274358]
[1763671851938,0.69,134.32,134.28,18.12096]
[1763671852147,2.49,134.32,134.29,12.04274358]
[1763671852344,0.69,134.32,134.3,12.04274358]
[1763671852566,2.49,134.32,134.3,12.04274358]
[1763671853051,18.81096,134.31,134.19,12.04274358]
[1763671853250,0.69,134.32,134.29,12.04274358]
[1763671853453,2.49,134.32,134.3,12.04274358]
[1763671853927,0.69,134.31,134.3,12.04274358]
[1763671854129,0.69,134.31,134.29,12.04274358]
[1763671854326,0.69,134.31,134.23,1.8]
[1763671854533,0.69,134.31,134.26,12.04274358]
[1763671855362,0.69,134.31,134.27,12.04274358]
[1763671855548,0.69,134.31,134.28,12.04274358]
[1763671855747,1.8,134.3,134.28,12.04274358]
[1763671856171,2.49,134.3,134.28,12.04274358]
[1763671856468,0.69,134.29,134.28,12.04274358]
[1763671857274,2.49,134.32,134.28,12.04274358]
[1763671857449,2.49,134.32,134.3,12.04274358]
[1763671857774,0.69,134.31,134.3,12.04274358]
[1763671859242,0.69,134.31,134.29,12.04274358]
[1763671860338,0.69,134.31,134.24,12.04274358]
[1763671860535,1.8,134.3,134.22,0.21]
[1763671860761,1.8,134.3,134.26,12.04274358]
[1763671861073,0.69,134.29,134.27,12.04274358]
[1763671861387,1.8,134.28,134.27,12.04274358]
[1763671861736,2.49,134.28,134.27,12.04274358]
[1763671861952,1.8,134.28,134.27,12.04274358]
[1763671862178,2.49,134.28,134.26,12.04274358]
[1763671862338,0.69,134.27,134.26,12.04274358]
[1763671862682,0.69,134.27,134.25,12.04274358]
[1763671863449,0.69,134.27,134.24,12.04274358]
[1763671863647,12.73274358,134.27,134.21,12.04274358]
[1763671863893,21.83157127,134.26,134.2,12.04274358]
[1763671864047,0.69,134.25,134.21,12.04274358]
[1763671864253,1.8,134.24,134.21,12.04274358]
[1763671864453,1.8,134.24,134.2,12.04274358]
[1763671864690,0.69,134.23,134.19,12.04274358]
[1763671864980,0.69,134.23,134.17,0.2]
[1763671864981,9.78882769,134.2,134.17,0.2]
[1763671865152,1.8,134.19,134.17,0.2]
[1763671865357,71.83157127,134.18,134.11,12.04274358]
[1763671865553,72.52157127,134.18,134.12,12.04274358]
[1763671865782,12.73274358,134.17,134.11,12.04274358]
[1763671865948,12.73274358,134.17,134.12,12.04274358]
[1763671865949,1.8,134.16,134.12,12.04274358]
[1763671866153,1.8,134.15,134.09,18.33096]
[1763671866457,2.49,134.15,134.12,12.04274358]
[1763671866655,2.49,134.15,134.06,1.8]
[1763671866656,0.69,134.14,134.07,0.41]
[1763671866969,0.69,134.14,134.11,12.04274358]
[1763671867163,12.73274358,134.14,134.05,0.41]
[1763671867371,12.73274358,134.14,134.01,12.04274358]
[1763671867372,12.04274358,134.12,134.01,12.04274358]
[1763671867580,1.8,134.11,134.07,12.04274358]
[1763671867880,2.49,134.11,134.07,12.04274358]
[1763671868076,0.69,134.1,134.07,12.04274358]
[1763671868268,0.69,134.1,134.05,18.12096]
[1763671868476,0.69,134.1,134.07,12.04274358]
[1763671868853,0.69,134.1,134.01,21.83157127]
[1763671868854,0.69,134.1,134.01,0.41]
[1763671869054,1.8,134.09,134.06,12.04274358]
[1763671869280,1.8,134.09,134.07,12.04274358]
[1763671869654,2.49,134.09,134.04,18.12096]
[1763671869862,2.49,134.09,134.03,18.12096]
[1763671869863,2.49,134.09,134.06,12.04274358]
[1763671870285,0.69,134.08,134.06,12.04274358]
[1763671870497,0.69,134.08,134.02,0.41]
[1763671870498,0.69,134.08,134.04,18.12096]
[1763671870804,0.69,134.08,134.05,12.04274358]
[1763671871185,0.69,134.08,134.02,0.41]
[1763671871390,1.8,134.09,134.06,12.04274358]
[1763671871574,1.8,134.1,134.08,12.04274358]
[1763671871768,1.8,134.1,134.09,12.04274358]
[1763671872272,2.49,134.1,134.09,12.04274358]
[1763671873166,0.69,134.12,134.05,0.41]
[1763671873405,2.49,134.12,134.09,12.04274358]
[1763671873882,0.69,134.11,134.09,12.04274358]
[1763671874401,2.49,134.11,134.09,12.04274358]
[1763671874898,0.69,134.1,134.08,12.04274358]
[1763671875097,0.69,134.1,134.05,0.41]
[1763671875299,1.8,134.11,134.08,12.04274358]
[1763671875509,1.8,134.11,134.09,12.04274358]
[1763671875883,1.8,134.11,134.1,12.04274358]
[1763671876383,2.49,134.11,134.1,12.04274358]
[1763671876786,0.69,134.11,134.1,12.04274358]
[1763671877108,2.49,134.11,134.1,7.73338928]
[1763671877690,0.69,134.13,134.1,7.73338928]
[1763671877920,0.69,134.13,134.11,7.73338928]
[1763671878210,1.8,134.12,134.11,7.73338928]
[1763671878597,2.49,134.12,134.05,0.41]
[1763671878790,0.69,134.15,134.11,7.73338928]
[1763671878986,0.69,134.15,134.13,7.73338928]
[1763671879176,0.69,134.15,134.1,7.73338928]
[1763671879396,8.42338928,134.15,134.09,7.73338928]
[1763671879704,7.73338928,134.13,134.08,7.73338928]
[1763671879878,7.73338928,134.13,134.05,18.53096]
[1763671879879,1.8,134.12,134.07,7.73338928]
[1763671880082,10.22338928,134.12,134.07,7.73338928]
[1763671880383,8.42338928,134.11,134.06,7.73338928]
[1763671880584,0.66,134.1,134.06,7.73338928]
[1763671880803,1.8,134.09,134.06,7.73338928]
[1763671881105,2.46,134.09,134.07,7.73338928]
[1763671881517,2.46,134.09,134.06,7.73338928]
[1763671881691,2.46,134.09,134.07,7.73338928]
[1763671881889,0.66,134.09,134.07,7.73338928]
[1763671882088,2.46,134.09,134.07,7.73338928]
[1763671882478,0.66,134.08,134.04,18.12096]
[1763671882678,0.66,134.08,134.05,7.73338928]
[1763671883089,1.8,134.09,134.06,7.73338928]
[1763671883307,0.66,134.08,134.06,7.73338928]
[1763671883617,0.66,134.1,134.07,7.73338928]
[1763671883792,2.46,134.09,134.04,18.53096]
[1763671883986,2.46,134.09,134.07,7.73338928]
[1763671884382,0.66,134.11,134.08,7.73338928]
[1763671884716,68.12096,134.13,134.1,7.73338928]
[1763671884717,0.66,134.13,134.1,7.73338928]
[1763671884899,2.46,134.12,134.1,7.73338928]
[1763671885085,2.46,134.12,134.09,7.73338928]
[1763671885281,0.66,134.11,134.09,7.73338928]
[1763671885693,0.66,134.11,134.08,7.73338928]
[1763671885883,0.66,134.11,134.07,7.73338928]
[1763671886709,0.66,134.11,134.04,18.12096]
[1763671886907,0.66,134.11,134.06,7.73338928]
[1763671887086,0.66,134.11,134.07,7.73338928]
[1763671887702,1.8,134.1,134.08,7.73338928]
[1763671888011,9.78882769,134.14,134.09,7.73338928]
[1763671888207,9.78882769,134.14,134.04,18.12096]
[1763671888208,2.46,134.13,134.1,7.73338928]
[1763671888411,2.46,134.13,134.08,7.73338928]
[1763671888724,0.66,134.12,134.08,7.73338928]
[1763671889091,0.66,134.12,134.04,18.53096]
[1763671889289,0.66,134.12,134.08,7.73338928]
[1763671889491,1.8,134.11,134.09,7.73338928]
[1763671890027,0.67,134.1,134.08,7.73338928]
[1763671890185,0.67,134.1,134.07,7.73338928]
[1763671890389,0.67,134.1,134.04,18.12096]
[1763671890390,0.67,134.1,134.09,7.73338928]
[1763671891200,0.67,134.1,134.08,7.73338928]
[1763671891494,0.67,134.1,134.07,7.73338928]
[1763671891802,0.67,134.1,134.06,7.73338928]
[1763671892209,0.67,134.1,134.07,7.73338928]
[1763671892408,1.8,134.09,134.08,7.73338928]
[1763671892816,1.8,134.09,134.04,18.53096]
[1763671892817,2.47,134.09,134.07,7.73338928]
[1763671893023,50.0,134.13,134.08,7.73338928]
[1763671893338,0.67,134.11,134.08,7.73338928]
[1763671894136,0.67,134.11,134.07,7.73338928]
[1763671895898,0.67,134.11,134.04,18.12096]
[1763671895899,8.40338928,134.11,134.04,18.12096]
[1763671896113,8.40338928,134.11,134.05,7.73338928]
[1763671896299,0.67,134.1,134.05,7.73338928]
[1763671896503,1.8,134.09,134.05,7.73338928]
[1763671896697,1.8,134.09,134.06,7.73338928]
[1763671897004,0.67,134.08,134.05,7.73338928]
[1763671897741,0.67,134.08,134.03,25.85434928]
[1763671898114,0.67,134.08,134.04,7.73338928]
[1763671898331,0.67,134.08,134.03,7.73338928]
[1763671898500,8.40338928,134.08,134.02,7.73338928]
[1763671898703,101.8,134.09,133.99,0.61]
[1763671898704,7.73338928,134.06,134.0,7.73338928]
[1763671898955,11.58882769,134.05,134.0,7.73338928]
[1763671899137,19.99221697,134.05,133.99,0.2]
[1763671899423,0.67,134.04,134.0,7.73338928]
[1763671900224,0.67,134.04,134.01,7.73338928]
[1763671900422,1.8,134.04,134.03,7.73338928]
[1763671901841,0.67,134.06,134.03,7.73338928]
[1763671902011,1.8,134.05,134.01,0.41]
[1763671902942,0.67,134.08,134.03,18.12096]
[1763671903141,1.8,134.07,134.03,18.12096]
[1763671903346,1.8,134.07,134.06,7.73338928]
[1763671903528,2.47,134.07,134.06,7.73338928]
[1763671903853,2.47,134.07,134.05,7.73338928]
[1763671904020,0.67,134.06,134.03,18.12096]
[1763671904344,0.67,134.06,134.04,7.73338928]
[1763671904647,0.67,134.06,134.0,7.73338928]
[1763671904648,1.8,134.07,134.05,7.73338928]
[1763671904946,2.47,134.07,134.06,7.73338928]
[1763671905632,0.67,134.07,134.06,7.73338928]
[1763671905844,1.8,134.1,134.06,8.14338928]
[1763671906143,2.47,134.1,134.09,7.73338928]
[1763671906949,0.67,134.12,134.09,7.73338928]
[1763671907136,2.47,134.12,134.1,7.73338928]
[1763671908739,2.47,134.12,134.11,7.73338928]
[1763671908921,2.47,134.12,134.1,7.73338928]
[1763671910037,5.67905991,134.14,134.08,0.41]
[1763671910347,1.8,134.15,134.13,7.73338928]
[1763671910649,1.8,134.15,134.14,7.73338928]
[1763671911356,14.80605977,134.18,134.14,8.14338928]
[1763671911357,5.01723208,134.18,134.14,8.14338928]
[1763671911528,0.66,134.18,134.17,7.73338928]
[1763671911730,0.66,134.18,134.13,18.12096]
[1763671911946,0.66,134.18,134.15,7.73338928]
[1763671913034,0.66,134.18,134.17,7.73338928]
[1763671913754,1.8,134.19,134.17,7.73338928]
[1763671913962,1.8,134.19,134.18,7.73338928]
[1763671914342,67.94,134.27,134.18,8.14338928]
[1763671914669,67.94,134.27,134.16,25.85434928]
[1763671914670,8.39338928,134.25,134.2,7.73338928]
[1763671914825,8.39338928,134.25,134.15,18.12096]
[1763671914826,67.52221697,134.24,134.15,18.12096]
[1763671915154,1.8,134.23,134.19,7.73338928]
[1763671915449,2.46,134.23,134.19,7.73338928]
[1763671915653,0.66,134.22,134.19,7.73338928]
[1763671915953,0.66,134.22,134.2,7.73338928]
[1763671916325,0.66,134.22,134.19,7.73338928]
[1763671916953,0.66,134.22,134.15,18.53096]
[1763671917160,0.66,134.22,134.18,7.73338928]
[1763671917653,0.66,134.22,134.15,18.53096]
[1763671917654,0.66,134.22,134.19,7.73338928]
[1763671918647,60.44882769,134.24,134.21,7.73338928]
[1763671918851,0.66,134.22,134.2,7.73338928]
[1763671919235,0.66,134.22,134.19,7.73338928]
[1763671920222,0.66,134.22,134.18,7.73338928]
[1763671920423,50.0,134.2,134.15,7.73338928]
[1763671920665,1.8,134.19,134.17,7.73338928]
[1763671920828,9.78882769,134.18,134.08,9.94338928]
[1763671921028,0.66,134.17,134.13,7.73338928]
[1763671921346,1.8,134.16,134.12,7.73338928]
[1763671921541,0.66,134.17,134.14,7.73338928]
[1763671921842,1.8,134.16,134.11,18.12096]
[1763671922046,1.8,134.16,134.12,0.41]
[1763671922236,1.8,134.17,134.12,0.41]
[1763671922952,1.8,134.17,134.16,7.73338928]
[1763671923459,0.66,134.23,134.16,15.87677856]
[1763671923634,2.46,134.23,134.22,7.73338928]
[1763671924531,2.46,134.23,134.21,7.73338928]
[1763671925056,2.46,134.23,134.15,19.92096]
[1763671925057,0.66,134.22,134.19,7.73338928]
[1763671925557,10.44882769,134.22,134.17,7.73338928]
[1763671925757,10.44882769,134.22,134.15,18.12096]
[1763671925758,10.44882769,134.22,134.18,7.73338928]
[1763671925931,0.66,134.21,134.19,7.73338928]
[1763671926255,1.8,134.2,134.16,26.26434928]
[1763671926759,1.8,134.2,134.16,25.85434928]
[1763671926952,1.8,134.2,134.17,0.41]
[1763671927351,1.8,134.2,134.19,7.73338928]
[1763671927948,59.78882769,134.25,134.19,7.73338928]
[1763671928160,2.46,134.24,134.22,7.73338928]
[1763671928541,0.66,134.23,134.22,7.73338928]
[1763671928736,0.66,134.23,134.15,2.21]
[1763671928941,0.66,134.23,134.18,7.73338928]
[1763671929251,0.66,134.23,134.19,7.73338928]
[1763671929841,9.78882769,134.22,134.15,20.33096]
[1763671930068,1.8,134.21,134.18,7.73338928]
[1763671930244,9.78882769,134.2,134.15,7.73338928]
[1763671930571,10.44882769,134.2,134.16,7.73338928]
[1763671930874,0.66,134.19,134.13,18.12096]
[1763671931054,1.8,134.18,134.16,7.73338928]
[1763671931567,2.46,134.18,134.16,7.73338928]
[1763671931757,1.8,134.18,134.17,7.73338928]
[1763671932272,2.46,134.18,134.17,7.73338928]
[1763671932455,2.46,134.18,134.16,7.73338928]
[1763671932661,2.46,134.17,134.16,7.73338928]
[1763671932862,2.46,134.17,134.15,7.73338928]
[1763671933351,0.66,134.16,134.15,7.73338928]
[1763671933543,1.8,134.17,134.15,7.73338928]
[1763671933744,1.8,134.17,134.16,7.73338928]
[1763671934275,1.8,134.17,134.09,70.98882769]
[1763671934276,0.66,134.16,134.14,7.73338928]
[1763671934566,0.66,134.16,134.12,25.85434928]
[1763671934747,7.73338928,134.14,134.05,0.41]
[1763671934955,7.73338928,134.14,134.09,7.73338928]
[1763671934956,1.8,134.13,134.09,7.73338928]
[1763671935169,2.46,134.13,134.09,7.73338928]
[1763671935366,0.66,134.16,134.12,7.73338928]
[1763671935538,53.89803034,134.21,134.15,7.73338928]
[1763671935539,9.78882769,134.19,134.15,7.73338928]
[1763671935746,0.66,134.17,134.15,7.73338928]
[1763671937069,0.66,134.17,134.13,7.73338928]
[1763671937442,0.66,134.17,134.09,18.53096]
[1763671937641,0.66,134.17,134.13,7.73338928]
[1763671937874,0.66,134.17,134.09,18.53096]
[1763671938184,0.66,134.17,134.11,7.73338928]
[1763671938185,59.78882769,134.16,134.11,7.73338928]
[1763671938349,9.78882769,134.14,134.1,7.73338928]
[1763671938744,0.66,134.13,134.1,12.11732394]
[1763671938976,1.8,134.12,134.1,12.11732394]
[1763671939471,0.66,134.16,134.11,12.52732394]
[1763671939768,0.66,134.16,134.14,12.11732394]
[1763671939769,1.8,134.15,134.14,12.11732394]
[1763671940944,0.72,134.17,134.14,12.11732394]
[1763671940945,80.23828394,134.21,134.14,12.11732394]
[1763671941148,0.72,134.19,134.15,12.11732394]
[1763671941359,0.72,134.19,134.16,12.11732394]
[1763671942655,0.72,134.19,134.18,12.11732394]
[1763671942656,2.52,134.19,134.18,12.11732394]
[1763671942973,2.52,134.19,134.17,12.11732394]
[1763671943155,1.8,134.19,134.16,12.11732394]
[1763671943360,0.72,134.18,134.16,12.11732394]
[1763671943875,1.8,134.19,134.17,12.11732394]
[1763671944268,1.8,134.19,134.18,12.11732394]
[1763671944445,1.8,134.2,134.18,12.11732394]
[1763671944650,0.72,134.22,134.19,12.11732394]
[1763671944878,2.52,134.22,134.21,12.11732394]
[1763671945176,50.0,134.26,134.21,12.11732394]
[1763671945177,0.72,134.26,134.21,12.11732394]
[1763671945385,2.52,134.25,134.23,12.11732394]
[1763671945689,1.8,134.25,134.24,12.11732394]
[1763671945855,0.72,134.27,134.23,12.11732394]
[1763671946059,1.8,134.26,134.23,12.11732394]
[1763671946258,0.72,134.25,134.19,18.12096]
[1763671946473,0.72,134.25,134.22,12.11732394]
[1763671946676,0.72,134.25,134.23,12.11732394]
[1763671948186,0.72,134.28,134.24,12.11732394]
[1763671948352,1.8,134.27,134.25,12.11732394]
[1763671948682,1.8,134.28,134.26,12.11732394]
[1763671948862,2.52,134.28,134.26,12.11732394]
[1763671949063,0.72,134.27,134.26,12.11732394]
[1763671949258,0.72,134.27,134.24,12.11732394]
[1763671950384,12.11732394,134.25,134.15,0.41]
[1763671950680,1.8,134.24,134.22,12.11732394]
[1763671950874,10.49882769,134.26,134.22,12.11732394]
[1763671951068,1.8,134.25,134.22,12.11732394]
[1763671951260,0.71,134.25,134.22,12.11732394]
[1763671951466,2.51,134.24,134.22,12.11732394]
[1763671951664,2.51,134.24,134.21,12.11732394]
[1763671952260,50.71,134.27,134.23,12.11732394]
[1763671952454,1.8,134.26,134.25,12.11732394]
[1763671952665,2.51,134.26,134.18,19.92096]
[1763671952881,0.71,134.25,134.21,12.11732394]
[1763671953472,0.71,134.25,134.18,18.12096]
[1763671953684,0.71,134.25,134.23,12.11732394]
[1763671953875,1.8,134.24,134.23,12.11732394]
[1763671954266,2.51,134.25,134.23,12.11732394]
[1763671955459,2.51,134.25,134.22,12.11732394]
[1763671955659,2.51,134.25,134.21,12.11732394]
[1763671955660,0.71,134.24,134.21,12.11732394]
[1763671956274,0.71,134.24,134.22,12.11732394]
[1763671956861,71.90615163,134.28,134.23,12.11732394]
[1763671956862,0.71,134.28,134.23,12.11732394]
[1763671957066,2.51,134.27,134.25,12.11732394]
[1763671957281,2.51,134.27,134.24,12.11732394]
[1763671957675,0.71,134.26,134.24,12.11732394]
[1763671958789,1.8,134.27,134.24,12.11732394]
[1763671958972,2.51,134.27,134.24,12.11732394]
[1763671959682,0.71,134.26,134.21,18.12096]
[1763671959862,0.71,134.26,134.2,2.21]
[1763671959863,0.71,134.26,134.22,12.11732394]
[1763671960062,0.71,134.26,134.17,0.41]
[1763671960063,9.78882769,134.25,134.17,0.41]
[1763671960394,1.8,134.24,134.22,12.11732394]
[1763671960575,1.8,134.24,134.21,12.11732394]
[1763671960780,0.71,134.23,134.21,12.11732394]
[1763671960975,0.71,134.23,134.18,18.12096]
[1763671960976,0.71,134.23,134.2,12.11732394]
[1763671961202,0.71,134.23,134.19,12.11732394]
[1763671962268,0.71,134.25,134.21,12.11732394]
[1763671962469,1.8,134.24,134.22,12.11732394]
[1763671962993,2.51,134.24,134.22,12.11732394]
[1763671963770,1.8,134.26,134.23,12.11732394]
[1763671963971,2.51,134.26,134.23,12.11732394]
[1763671965902,0.71,134.25,134.23,12.11732394]
[1763671966281,1.8,134.26,134.23,12.11732394]
[1763671966479,0.71,134.25,134.22,12.11732394]
[1763671966885,0.71,134.25,134.21,12.11732394]
[1763671967102,10.49882769,134.25,134.2,12.11732394]
[1763671967271,0.71,134.25,134.21,12.11732394]
[1763671967477,0.71,134.24,134.21,12.11732394]
[1763671967685,1.8,134.23,134.21,12.11732394]
[1763671968121,1.8,134.23,134.18,79.32096]
[1763671968122,2.51,134.23,134.18,79.32096]
[1763671968275,2.51,134.23,134.2,12.11732394]
[1763671968276,1.8,134.23,134.2,12.11732394]
[1763671968478,2.51,134.23,134.2,12.11732394]
[1763671968692,1.8,134.23,134.19,12.11732394]
[1763671969004,0.71,134.22,134.19,12.11732394]
[1763671969205,21.90615163,134.21,134.12,0.41]
[1763671969376,1.8,134.2,134.16,12.11732394]
[1763671969692,2.51,134.2,134.16,12.11732394]
[1763671969882,0.71,134.19,134.16,12.11732394]
[1763671970083,0.71,134.19,134.17,12.11732394]
[1763671970391,1.8,134.2,134.18,12.11732394]
[1763671970774,2.5,134.2,134.18,12.11732394]
[1763671971275,1.8,134.22,134.19,12.11732394]
[1763671971474,1.8,134.22,134.2,12.11732394]
[1763671971774,2.5,134.22,134.2,12.11732394]